fUSD/lending_fUSD_20260519
["ID","MTS","AMOUNT","RATE_DAILY","PERIOD"]
[422598100,1779136253000,-200.0,0.00037776,2]
[422598098,1779136253000,-157.8082295,0.00037772,2]
[422598101,1779136253000,-252.24734466,0.000378,2]
[422598099,1779136253000,-200.0,0.00037776,2]
[422598053,1779136253000,-500.0,0.00037558,120]
[422598089,1779136253000,-157.69,0.00037636,60]
[422598080,1779136253000,-500.0,0.00037558,30]
[422598081,1779136253000,-500.0,0.00037558,30]
[422598078,1779136253000,-500.0,0.00037558,120]
[422598065,1779136253000,-500.0,0.00037558,120]
[422598056,1779136253000,-500.0,0.00037558,120]
[422598059,1779136253000,-500.0,0.00037558,2]
[422598058,1779136253000,-500.0,0.00037558,2]
[422598062,1779136253000,-500.0,0.00037558,2]
[422598096,1779136253000,-157.69,0.00037736,60]
[422598057,1779136253000,-534.75180877,0.00037558,120]
[422598063,1779136253000,-500.0,0.00037558,2]
[422598079,1779136253000,-500.0,0.00037558,30]
[422598067,1779136253000,-500.0,0.00037558,120]
[422598077,1779136253000,-500.0,0.00037558,120]
[422598060,1779136253000,-500.0,0.00037558,2]
[422598068,1779136253000,-500.0,0.00037558,120]
[422598072,1779136253000,-500.0,0.00037558,120]
[422598069,1779136253000,-500.0,0.00037558,120]
[422598071,1779136253000,-500.0,0.00037558,120]
[422598070,1779136253000,-500.0,0.00037558,120]
[422598076,1779136253000,-500.0,0.00037558,120]
[422598074,1779136253000,-500.0,0.00037558,120]
[422598073,1779136253000,-500.0,0.00037558,120]
[422598066,1779136253000,-500.0,0.00037558,120]
[422598075,1779136253000,-500.0,0.00037558,120]
[422598108,1779136254000,-157.69,0.00037936,60]
[422598107,1779136254000,-156.4878591,0.00037896,30]
[422598115,1779136254000,-500.0,0.00037999,30]
[422598109,1779136254000,-500.0,0.00037999,120]
[422598105,1779136254000,-150.0,0.0003789,2]
[422598114,1779136254000,-500.0,0.00037999,120]
[422598104,1779136254000,-205.75752157,0.0003788,2]
[422598106,1779136254000,-150.0,0.0003789,2]
[422598110,1779136254000,-500.0,0.00037999,120]
[422598113,1779136254000,-500.0,0.00037999,120]
[422598112,1779136254000,-500.0,0.00037999,30]
[422598117,1779136254000,-33911.07340102,0.00038,33]
[422598118,1779136254000,-5393.42694293,0.00038,33]
[422598116,1779136254000,-500.0,0.00037999,30]
[422598119,1779136254000,-624.0,0.00038,33]
[422598120,1779136254000,-494.17,0.00038,33]
[422598111,1779136254000,-500.0,0.00037999,30]
[422598124,1779136438000,307.33061529,0.00013606,21]
[422598125,1779136507000,173.39,7.647e-05,2]
[422598126,1779136508000,173.39,9.483e-05,2]
[422598127,1779136690000,340.491961,0.00024543,120]
[422598128,1779136720000,170.245981,0.00023571,120]
[422598131,1779136858000,342.6993249,0.00029999,120]
[422598132,1779137084000,500.0,0.00029134,120]
[422598133,1779137229000,464.60702494,0.00029732,120]
[422598134,1779137246000,173.39,5.916e-05,2]
[422598135,1779137247000,173.39,8.758e-05,2]
[422598137,1779137431000,-165.56,0.0001107,2]
[422598138,1779137431000,-500.0,0.00011071,2]
[422598141,1779137431000,-777.94238862,0.00011205,2]
[422598140,1779137431000,-388.019697,0.00011205,2]
[422598142,1779137431000,-163.42,0.00011263,2]
[422598143,1779137431000,-250.0,0.00011348,2]
[422598146,1779137431000,-300.0,0.00011535,2]
[422598145,1779137431000,-216.0,0.00011487,2]
[422598139,1779137431000,-34.03791438,0.00011205,2]
[422598149,1779137431000,-216.0,0.000116,2]
[422598147,1779137431000,-7072.05,0.00011536,2]
[422598144,1779137431000,-216.0,0.00011375,2]
[422598150,1779137431000,-173.39,0.000116,2]
[422598153,1779137431000,-162.3,0.0001168,2]
[422598151,1779137431000,-200.0,0.00011607,2]
[422598152,1779137431000,-150.0,0.00011615,2]
[422598155,1779137431000,-216.0,0.00011712,2]
[422598154,1779137431000,-4272.14,0.0001171,2]
[422598148,1779137431000,-2000.0,0.00011537,2]
[422598168,1779137432000,-9999.99,0.00012087,2]
[422598183,1779137432000,-1680.0,0.00012326,2]
[422598185,1779137432000,-150.0,0.00012371,2]
[422598188,1779137432000,-5780.85,0.00012371,2]
[422598200,1779137432000,-663.41563793,0.00012496,2]
[422598192,1779137432000,-250.0,0.00012389,2]
[422598202,1779137432000,-20094.74,0.00012497,2]
[422598195,1779137432000,-250.0,0.00012452,2]
[422598170,1779137432000,-9999.99,0.00012087,2]
[422598206,1779137432000,-211.61607221,0.00012523,2]
[422598190,1779137432000,-221.0,0.00012388,2]
[422598180,1779137432000,-216.0,0.00012276,2]
[422598163,1779137432000,-150.99,0.00012087,2]
[422598178,1779137432000,-4650.0,0.00012201,2]
[422598175,1779137432000,-216.0,0.00012163,2]
[422598173,1779137432000,-234.48,0.00012125,2]
[422598162,1779137432000,-4143.06,0.00012055,2]
[422598160,1779137432000,-216.0,0.00011938,2]
[422598161,1779137432000,-216.0,0.0001205,2]
[422598157,1779137432000,-241.96,0.00011733,2]
[422598159,1779137432000,-212.53,0.00011826,2]
[422598158,1779137432000,-216.0,0.00011825,2]
[422598209,1779137432000,-571.89778002,0.00012523,2]
[422598156,1779137432000,-3546.48,0.00011726,2]
[422598166,1779137432000,-299.99,0.00012087,2]
[422598212,1779137432000,-500.0,0.00012523,2]
[422598260,1779137432000,-2088.41628585,0.00012524,2]
[422598224,1779137432000,-338363.21372754,0.00012524,2]
[422598214,1779137432000,-394.11716453,0.00012523,2]
[422598257,1779137432000,-4800.74438523,0.00012524,2]
[422598256,1779137432000,-9114.32048929,0.00012524,2]
[422598255,1779137432000,-179.40925851,0.00011163,2]
[422598259,1779137432000,-507.104,0.00012524,2]
[422598258,1779137432000,-1763.20802313,0.00012524,2]
[422598254,1779137432000,-299.23478,0.00012524,2]
[422598250,1779137432000,-4751.41049392,0.00012524,2]
[422598252,1779137432000,-627.92076636,0.00012524,2]
[422598249,1779137432000,-10878.70377158,0.00012524,2]
[422598251,1779137432000,-438.17163695,0.00012524,2]
[422598248,1779137432000,-7565.24911721,0.00012524,2]
[422598253,1779137432000,-13266.57825408,0.00012524,2]
[422598245,1779137432000,-2860.62950549,0.00012524,2]
[422598237,1779137432000,-659.1457183,0.00012524,2]
[422598243,1779137432000,-3828.28037571,0.00012524,2]
[422598239,1779137432000,-952.0,0.00012524,2]
[422598232,1779137432000,-540.58542602,0.00012524,2]
[422598235,1779137432000,-665.79967857,0.00012524,2]
[422598219,1779137432000,-106195.96346719,0.00012524,2]
[422598221,1779137432000,-194888.63096385,0.00012524,2]
[422598216,1779137432000,-171933.43098825,0.00012524,2]
[422598230,1779137432000,-615.73022702,0.00012524,2]
[422598247,1779137432000,-26185.59258531,0.00012524,2]
[422598227,1779137432000,-1254.41808677,0.00012524,2]
[422598315,1779137438000,-500.0,0.00013698,2]
[422598302,1779137438000,-500.0,0.00013698,2]
[422598295,1779137438000,-500.0,0.00013698,2]
[422598294,1779137438000,-500.0,0.00013698,2]
[422598296,1779137438000,-500.0,0.00013698,2]
[422598303,1779137438000,-500.0,0.00013698,2]
[422598300,1779137438000,-500.0,0.00013698,2]
[422598297,1779137438000,-500.0,0.00013698,2]
[422598305,1779137438000,-500.0,0.00013698,2]
[422598298,1779137438000,-500.0,0.00013698,2]
[422598304,1779137438000,-500.0,0.00013698,2]
[422598328,1779137438000,-592.87696527,0.00013698,2]
[422598307,1779137438000,-500.0,0.00013698,2]
[422598312,1779137438000,-500.0,0.00013698,2]
[422598309,1779137438000,-500.0,0.00013698,2]
[422598310,1779137438000,-500.0,0.00013698,2]
[422598311,1779137438000,-500.0,0.00013698,2]
[422598308,1779137438000,-500.0,0.00013698,2]
[422598314,1779137438000,-500.0,0.00013698,2]
[422598313,1779137438000,-500.0,0.00013698,2]
[422598316,1779137438000,-500.0,0.00013698,2]
[422598318,1779137438000,-500.0,0.00013698,2]
[422598321,1779137438000,-500.0,0.00013698,2]
[422598301,1779137438000,-500.0,0.00013698,2]
[422598306,1779137438000,-500.0,0.00013698,2]
[422598293,1779137438000,-500.0,0.00013698,2]
[422598286,1779137438000,-255.0,0.0001346,2]
[422598288,1779137438000,-1472.7157,0.00013498,2]
[422598266,1779137438000,-8104.186519,0.00011014,2]
[422598267,1779137438000,-179.4092585,0.00011726,2]
[422598268,1779137438000,-500.0,0.00012523,2]
[422598270,1779137438000,-500.0,0.00012523,2]
[422598279,1779137438000,-328.39,0.0001295,2]
[422598278,1779137438000,-200.96,0.00012785,2]
[422598272,1779137438000,-500.0,0.00012523,2]
[422598271,1779137438000,-209.48816047,0.00012523,2]
[422598269,1779137438000,-500.0,0.00012523,2]
[422598277,1779137438000,-196.6,0.00012759,2]
[422598276,1779137438000,-420.0,0.00012669,2]
[422598273,1779137438000,-594955.51724638,0.00012524,2]
[422598274,1779137438000,-50116.57386256,0.00012624,2]
[422598275,1779137438000,-328.39,0.00012634,2]
[422598283,1779137438000,-4684.3464391,0.00013298,2]
[422598327,1779137438000,-500.0,0.00013698,2]
[422598280,1779137438000,-2000.0,0.00012979,2]
[422598285,1779137438000,-16922.3491,0.00013398,2]
[422598281,1779137438000,-162.3,0.0001314,2]
[422598291,1779137438000,-328.39,0.00013581,2]
[422598290,1779137438000,-2351.0,0.00013558,2]
[422598282,1779137438000,-328.39,0.00013265,2]
[422598287,1779137438000,-295.08680176,0.00013497,2]
[422598284,1779137438000,-1832.11347408,0.00013398,2]
[422598289,1779137438000,-2000.0,0.00013498,2]
[422598292,1779137438000,-500.0,0.00013698,2]
[422598325,1779137438000,-500.0,0.00013698,2]
[422598299,1779137438000,-500.0,0.00013698,2]
[422598323,1779137438000,-500.0,0.00013698,2]
[422598353,1779137438000,-500.0,0.00013698,2]
[422598355,1779137438000,-500.0,0.00013698,2]
[422598357,1779137438000,-500.0,0.00013698,2]
[422598358,1779137438000,-500.0,0.00013698,2]
[422598362,1779137438000,-500.0,0.00013698,2]
[422598359,1779137438000,-500.0,0.00013698,2]
[422598366,1779137438000,-500.0,0.00013698,2]
[422598363,1779137438000,-500.0,0.00013698,2]
[422598356,1779137438000,-500.0,0.00013698,2]
[422598364,1779137438000,-500.0,0.00013698,2]
[422598361,1779137438000,-500.0,0.00013698,2]
[422598360,1779137438000,-500.0,0.00013698,2]
[422598365,1779137438000,-500.0,0.00013698,2]
[422598369,1779137438000,-500.0,0.00013698,2]
[422598368,1779137438000,-500.0,0.00013698,2]
[422598370,1779137438000,-500.0,0.00013698,2]
[422598372,1779137438000,-500.0,0.00013698,2]
[422598375,1779137438000,-500.0,0.00013698,2]
[422598371,1779137438000,-500.0,0.00013698,2]
[422598374,1779137438000,-500.0,0.00013698,2]
[422598373,1779137438000,-500.0,0.00013698,2]
[422598377,1779137438000,-1002.33,0.00013698,2]
[422598378,1779137438000,-1002.33,0.00013698,2]
[422598376,1779137438000,-1002.33,0.00013698,2]
[422598322,1779137438000,-500.0,0.00013698,2]
[422598352,1779137438000,-500.0,0.00013698,2]
[422598348,1779137438000,-500.0,0.00013698,2]
[422598367,1779137438000,-500.0,0.00013698,2]
[422598350,1779137438000,-500.0,0.00013698,2]
[422598320,1779137438000,-500.0,0.00013698,2]
[422598351,1779137438000,-500.0,0.00013698,2]
[422598326,1779137438000,-500.0,0.00013698,2]
[422598319,1779137438000,-500.0,0.00013698,2]
[422598317,1779137438000,-500.0,0.00013698,2]
[422598324,1779137438000,-500.0,0.00013698,2]
[422598340,1779137438000,-500.0,0.00013698,2]
[422598330,1779137438000,-500.0,0.00013698,2]
[422598341,1779137438000,-500.0,0.00013698,2]
[422598335,1779137438000,-553.1,0.00013698,2]
[422598331,1779137438000,-500.0,0.00013698,2]
[422598339,1779137438000,-500.0,0.00013698,2]
[422598338,1779137438000,-500.0,0.00013698,2]
[422598342,1779137438000,-500.0,0.00013698,2]
[422598336,1779137438000,-500.0,0.00013698,2]
[422598346,1779137438000,-500.0,0.00013698,2]
[422598354,1779137438000,-559.55314463,0.00013698,2]
[422598347,1779137438000,-500.0,0.00013698,2]
[422598349,1779137438000,-500.0,0.00013698,2]
[422598344,1779137438000,-500.0,0.00013698,2]
[422598343,1779137438000,-500.0,0.00013698,2]
[422598345,1779137438000,-500.0,0.00013698,2]
[422598334,1779137438000,-500.0,0.00013698,2]
[422598329,1779137438000,-500.0,0.00013698,2]
[422598333,1779137438000,-500.0,0.00013698,2]
[422598332,1779137438000,-500.0,0.00013698,2]
[422598337,1779137438000,-370.03132959,0.00013698,2]
[422598427,1779137439000,-150.0,0.00015282,2]
[422598429,1779137439000,-480.6,0.00015493,2]
[422598431,1779137439000,-2000.0,0.00015863,2]
[422598430,1779137439000,-480.64,0.00015767,2]
[422598419,1779137439000,-150.0,0.00014505,2]
[422598420,1779137439000,-162.3,0.000146,2]
[422598415,1779137439000,-166.66,0.0001411,2]
[422598416,1779137439000,-166.66,0.00014247,2]
[422598413,1779137439000,-1012.14993798,0.0001399,2]
[422598412,1779137439000,-166.66,0.00013973,2]
[422598418,1779137439000,-2000.0,0.00014421,2]
[422598414,1779137439000,-250.0,0.00014,2]
[422598417,1779137439000,-166.66,0.00014384,2]
[422598423,1779137439000,-250.0,0.00014882,2]
[422598441,1779137439000,-156.85,0.00016712,2]
[422598422,1779137439000,-480.6,0.00014671,2]
[422598424,1779137439000,-3292.0,0.00014914,2]
[422598425,1779137439000,-480.6,0.00014945,2]
[422598428,1779137439000,-823.0,0.00015282,2]
[422598421,1779137439000,-433.0,0.00014648,2]
[422598433,1779137439000,-4684.34643903,0.00015971,2]
[422598434,1779137439000,-300.0,0.00016,2]
[422598432,1779137439000,-736.0,0.00015934,2]
[422598443,1779137439000,-381.846895,0.00016824,2]
[422598444,1779137439000,-167.985561,0.0001696,2]
[422598436,1779137439000,-4609.0,0.00016406,2]
[422598435,1779137439000,-162.3,0.0001606,2]
[422598408,1779137439000,-500.0,0.00013814,2]
[422598426,1779137439000,-480.6,0.00015219,2]
[422598411,1779137439000,-587.0,0.00013914,2]
[422598442,1779137439000,-1152.0,0.00016784,2]
[422598409,1779137439000,-166.66,0.00013836,2]
[422598379,1779137439000,-1002.33,0.00013698,2]
[422598381,1779137439000,-1002.33,0.00013698,2]
[422598380,1779137439000,-1002.33,0.00013698,2]
[422598383,1779137439000,-500.0,0.00013698,2]
[422598393,1779137439000,-500.0,0.00013698,2]
[422598386,1779137439000,-500.0,0.00013698,2]
[422598384,1779137439000,-500.0,0.00013698,2]
[422598385,1779137439000,-500.0,0.00013698,2]
[422598389,1779137439000,-500.0,0.00013698,2]
[422598388,1779137439000,-500.0,0.00013698,2]
[422598387,1779137439000,-500.0,0.00013698,2]
[422598382,1779137439000,-1002.33,0.00013698,2]
[422598392,1779137439000,-500.0,0.00013698,2]
[422598391,1779137439000,-500.0,0.00013698,2]
[422598390,1779137439000,-500.0,0.00013698,2]
[422598394,1779137439000,-500.0,0.00013698,2]
[422598395,1779137439000,-500.0,0.00013698,2]
[422598405,1779137439000,-200.0,0.00013699,2]
[422598406,1779137439000,-160.0,0.00013723,2]
[422598396,1779137439000,-500.0,0.00013698,2]
[422598398,1779137439000,-500.0,0.00013698,2]
[422598397,1779137439000,-500.0,0.00013698,2]
[422598399,1779137439000,-500.0,0.00013698,2]
[422598401,1779137439000,-500.0,0.00013698,2]
[422598400,1779137439000,-602.92,0.00013698,2]
[422598403,1779137439000,-500.0,0.00013698,2]
[422598404,1779137439000,-166.66,0.00013699,2]
[422598402,1779137439000,-500.0,0.00013698,2]
[422598407,1779137439000,-500.0,0.00013814,2]
[422598410,1779137439000,-328.39,0.00013897,2]
[422598438,1779137439000,-321.36,0.00016438,2]
[422598507,1779137439000,-4684.34643903,0.00018644,2]
[422598440,1779137439000,-165.56,0.00016604,2]
[422598478,1779137439000,-151.0,0.00017859,2]
[422598476,1779137439000,-151.0,0.00017859,2]
[422598479,1779137439000,-151.0,0.00017859,2]
[422598477,1779137439000,-151.0,0.00017859,2]
[422598482,1779137439000,-151.0,0.00017859,2]
[422598475,1779137439000,-151.0,0.00017859,2]
[422598480,1779137439000,-151.0,0.00017859,2]
[422598481,1779137439000,-151.0,0.00017859,2]
[422598485,1779137439000,-151.0,0.00017859,2]
[422598487,1779137439000,-151.0,0.00017859,2]
[422598489,1779137439000,-151.0,0.00017859,2]
[422598488,1779137439000,-151.0,0.00017859,2]
[422598490,1779137439000,-151.0,0.00017859,2]
[422598486,1779137439000,-151.0,0.00017859,2]
[422598497,1779137439000,-198.39535058,0.000182,2]
[422598491,1779137439000,-151.0,0.00017859,2]
[422598492,1779137439000,-151.0,0.00017859,2]
[422598495,1779137439000,-350.0,0.00018,2]
[422598493,1779137439000,-151.0,0.00017859,2]
[422598494,1779137439000,-198.39535058,0.00018,2]
[422598499,1779137439000,-280.130245,0.00018347,2]
[422598498,1779137439000,-387.076854,0.00018347,2]
[422598501,1779137439000,-210.875514,0.00018347,2]
[422598502,1779137439000,-198.39535058,0.000184,2]
[422598503,1779137439000,-434.2,0.0001841,2]
[422598506,1779137439000,-271.831716,0.00018531,2]
[422598505,1779137439000,-198.39535058,0.000185,2]
[422598504,1779137439000,-1613.0,0.00018434,2]
[422598439,1779137439000,-214.24,0.00016438,2]
[422598474,1779137439000,-151.0,0.00017859,2]
[422598472,1779137439000,-500.0,0.00017808,2]
[422598496,1779137439000,-6453.0,0.00018046,2]
[422598483,1779137439000,-151.0,0.00017859,2]
[422598473,1779137439000,-500.0,0.00017808,2]
[422598446,1779137439000,-4650.0,0.00017081,2]
[422598456,1779137439000,-500.0,0.00017808,2]
[422598445,1779137439000,-1832.11347403,0.00017017,2]
[422598457,1779137439000,-500.0,0.00017808,2]
[422598448,1779137439000,-2000.0,0.00017306,2]
[422598450,1779137439000,-162.3,0.0001752,2]
[422598451,1779137439000,-173.56677,0.00017665,2]
[422598447,1779137439000,-196.6,0.00017197,2]
[422598449,1779137439000,-986.0,0.00017332,2]
[422598453,1779137439000,-500.0,0.00017808,2]
[422598455,1779137439000,-500.0,0.00017808,2]
[422598452,1779137439000,-500.0,0.00017808,2]
[422598454,1779137439000,-500.0,0.00017808,2]
[422598459,1779137439000,-500.0,0.00017808,2]
[422598437,1779137439000,-434.2,0.00016438,2]
[422598468,1779137439000,-500.0,0.00017808,2]
[422598458,1779137439000,-500.0,0.00017808,2]
[422598470,1779137439000,-500.0,0.00017808,2]
[422598469,1779137439000,-500.0,0.00017808,2]
[422598460,1779137439000,-500.0,0.00017808,2]
[422598461,1779137439000,-500.0,0.00017808,2]
[422598467,1779137439000,-500.0,0.00017808,2]
[422598466,1779137439000,-500.0,0.00017808,2]
[422598464,1779137439000,-500.0,0.00017808,2]
[422598471,1779137439000,-628.96718285,0.00017808,2]
[422598462,1779137439000,-500.0,0.00017808,2]
[422598465,1779137439000,-500.0,0.00017808,2]
[422598463,1779137439000,-500.0,0.00017808,2]
[422598484,1779137439000,-151.0,0.00017859,2]
[422598548,1779137440000,-500.0,0.000219,2]
[422598553,1779137440000,-5000.0,0.00021901,2]
[422598538,1779137440000,-398.0,0.00021,2]
[422598564,1779137440000,-7027.68,0.00022,2]
[422598563,1779137440000,-398.0,0.00022,2]
[422598544,1779137440000,-154.06086695,0.000215,30]
[422598550,1779137440000,-5000.0,0.00021901,2]
[422598546,1779137440000,-1203.37,0.00021685,2]
[422598543,1779137440000,-4684.34643903,0.00021317,2]
[422598547,1779137440000,-1041.0,0.00021836,2]
[422598545,1779137440000,-196.6,0.00021636,2]
[422598551,1779137440000,-5000.0,0.00021901,2]
[422598556,1779137440000,-152.0,0.00022,2]
[422598542,1779137440000,-1404.66,0.00021273,2]
[422598555,1779137440000,-811.25,0.00021918,2]
[422598562,1779137440000,-450.0,0.00022,2]
[422598554,1779137440000,-5000.0,0.00021918,2]
[422598552,1779137440000,-5000.0,0.00021901,2]
[422598559,1779137440000,-164.19920998,0.00022,2]
[422598558,1779137440000,-372.0,0.00022,2]
[422598561,1779137440000,-163.09958891,0.00022,2]
[422598560,1779137440000,-289.0,0.00022,2]
[422598566,1779137440000,-434.2,0.00022353,2]
[422598576,1779137440000,-500.0,0.00022623,2]
[422598577,1779137440000,-500.0,0.00022623,2]
[422598565,1779137440000,-1752.0,0.00022236,2]
[422598567,1779137440000,-1267.75,0.00022466,2]
[422598569,1779137440000,-168.08593143,0.0002261,21]
[422598573,1779137440000,-500.0,0.00022623,2]
[422598557,1779137440000,-203.0,0.00022,2]
[422598541,1779137440000,-201.582674,0.00021153,2]
[422598511,1779137440000,-161.703745,0.00019265,2]
[422598549,1779137440000,-5037.79875775,0.00021901,2]
[422598570,1779137440000,-500.0,0.00022623,2]
[422598510,1779137440000,-470.17,0.0001924,2]
[422598508,1779137440000,-470.17,0.00018771,2]
[422598513,1779137440000,-470.17833181,0.0001971,2]
[422598523,1779137440000,-398.0,0.0002,2]
[422598524,1779137440000,-154.25318114,0.0002,20]
[422598514,1779137440000,-9035.0,0.00019851,2]
[422598515,1779137440000,-152.0,0.0002,2]
[422598512,1779137440000,-175.944024,0.00019265,2]
[422598521,1779137440000,-155.0,0.0002,2]
[422598522,1779137440000,-400.0,0.0002,2]
[422598517,1779137440000,-372.0,0.0002,2]
[422598516,1779137440000,-203.0,0.0002,2]
[422598519,1779137440000,-170.02119813,0.0002,2]
[422598540,1779137440000,-160.07,0.00021114,2]
[422598518,1779137440000,-157.0,0.0002,2]
[422598526,1779137440000,-434.2,0.00020381,2]
[422598536,1779137440000,-289.0,0.00021,2]
[422598535,1779137440000,-157.0,0.00021,2]
[422598537,1779137440000,-155.0,0.00021,2]
[422598525,1779137440000,-2258.0,0.00020246,2]
[422598528,1779137440000,-1832.11347403,0.00020636,2]
[422598530,1779137440000,-221.493495,0.00020943,2]
[422598527,1779137440000,-150.76109754,0.0002058,2]
[422598534,1779137440000,-372.0,0.00021,2]
[422598532,1779137440000,-152.0,0.00021,2]
[422598531,1779137440000,-282.98699,0.00020943,2]
[422598529,1779137440000,-160.0,0.00020943,2]
[422598533,1779137440000,-203.0,0.00021,2]
[422598539,1779137440000,-1000.0,0.00021088,2]
[422598520,1779137440000,-289.0,0.0002,2]
[422598572,1779137440000,-500.0,0.00022623,2]
[422598509,1779137440000,-150.0,0.000192,2]
[422598568,1779137440000,-10000.0,0.00022524,2]
[422598614,1779137440000,-1583.05,0.00024174,2]
[422598615,1779137440000,-1832.11347403,0.00024255,2]
[422598607,1779137440000,-500.0,0.00024,2]
[422598617,1779137440000,-500.0,0.00024287,2]
[422598608,1779137440000,-398.0,0.00024,2]
[422598618,1779137440000,-1002.33,0.00024287,2]
[422598616,1779137440000,-500.0,0.00024287,2]
[422598609,1779137440000,-1031.15336498,0.00024052,5]
[422598619,1779137440000,-434.2,0.00024324,2]
[422598620,1779137440000,-162.0,0.00024397,2]
[422598632,1779137440000,-200.0,0.0002511,2]
[422598630,1779137440000,-7027.68,0.00025049,7]
[422598631,1779137440000,-1203.37,0.00025068,7]
[422598622,1779137440000,-151.0,0.00024658,2]
[422598613,1779137440000,-1100.48,0.00024174,2]
[422598623,1779137440000,-179.26,0.00024658,2]
[422598627,1779137440000,-377.72611124,0.00025,2]
[422598625,1779137440000,-379.42,0.00024658,2]
[422598628,1779137440000,-295.0,0.00025,2]
[422598624,1779137440000,-1000.0,0.00024658,2]
[422598629,1779137440000,-406.23226657,0.00025,2]
[422598626,1779137440000,-222.18200703,0.00025,2]
[422598634,1779137440000,-457.7318441,0.00025397,2]
[422598633,1779137440000,-498.45747932,0.00025176,2]
[422598635,1779137440000,-982.0,0.0002545,10]
[422598636,1779137440000,-575.0,0.0002545,10]
[422598640,1779137440000,-1583.05,0.00025786,2]
[422598639,1779137440000,-1100.48,0.00025786,2]
[422598638,1779137440000,-1404.66,0.00025786,2]
[422598575,1779137440000,-500.0,0.00022623,2]
[422598621,1779137440000,-500.0,0.00024656,2]
[422598611,1779137440000,-1070.65695608,0.00024052,5]
[422598637,1779137440000,-811.25,0.00025571,2]
[422598612,1779137440000,-3996.51,0.00024087,2]
[422598610,1779137440000,-1057.27370052,0.00024052,5]
[422598574,1779137440000,-500.0,0.00022623,2]
[422598578,1779137440000,-160.0,0.00023,2]
[422598579,1779137440000,-203.0,0.00023,2]
[422598589,1779137440000,-150.0,0.0002332,2]
[422598581,1779137440000,-289.0,0.00023,2]
[422598586,1779137440000,-1354.0,0.0002332,2]
[422598587,1779137440000,-625.0,0.0002332,2]
[422598583,1779137440000,-492.0,0.00023,2]
[422598580,1779137440000,-372.0,0.00023,2]
[422598582,1779137440000,-398.0,0.00023,2]
[422598585,1779137440000,-927.0,0.0002332,2]
[422598590,1779137440000,-200.0,0.0002332,2]
[422598584,1779137440000,-1106.99626856,0.00023082,2]
[422598588,1779137440000,-1270.0,0.0002332,2]
[422598571,1779137440000,-500.0,0.00022623,2]
[422598597,1779137440000,-1000.0,0.00023352,2]
[422598605,1779137440000,-372.0,0.00024,2]
[422598606,1779137440000,-289.0,0.00024,2]
[422598602,1779137440000,-6013.0,0.00023973,2]
[422598603,1779137440000,-4684.34643903,0.0002399,2]
[422598591,1779137440000,-150.0,0.0002332,2]
[422598599,1779137440000,-168.08593143,0.00023643,21]
[422598601,1779137440000,-670.32,0.000239,2]
[422598604,1779137440000,-203.0,0.00024,2]
[422598592,1779137440000,-150.0,0.0002332,2]
[422598598,1779137440000,-1203.37,0.00023377,2]
[422598594,1779137440000,-3632.0,0.0002332,2]